Cogmind - Beta 11.1 @@@ ROGUE MODE // 2022.04.27 @ 15:39:44 Player: Togure Result: Self-destructed Performance ------------- Evolutions (1) 500 Regions Visited (3) 600 Robots Destroyed (10) 50 Value Destroyed (363) 363 Prototype IDs (2) 40 Alien Tech Used (0) 0 Bonus (0) 0 TOTAL SCORE: 1553 Bonus ------- None Cogmind --------- Core Integrity 390/400 Matter 275/300 Energy 70/100 System Corruption 0% Temperature Warm (169) Movement Walking (190) Ox1 Location -9/Materials Parts ------- > --- POWER (1) -------- (None) > --- PROPULSION (4) --- Aluminum Leg Aluminum Leg > --- UTILITY (2) ------ Large Storage Unit Signal Interpreter > --- WEAPON (2) ------- Particle Gun Beamcaster > --- INVENTORY (15) --- Light Angular Momentum Engine Sensor Array Experimental Sensor Array Plasma Cutter Peak State ------------ > --- POWER ------------ Light Nuclear Core > --- PROPULSION ------- Aluminum Leg Aluminum Leg Aluminum Leg Aluminum Leg > --- UTILITY ---------- Medium Storage Unit Signal Interpreter > --- WEAPON ----------- Particle Gun Beamcaster > --- INVENTORY -------- Light Angular Momentum Engine Large Storage Unit Sensor Array Experimental Sensor Array Plasma Cutter [Rating: 17] Favorites ----------- Power Ion Engine Engine Ion Engine Power Core Light Nuclear Core Propulsion Aluminum Leg Leg Aluminum Leg Utility Medium Storage Unit Storage Medium Storage Unit Processor Signal Interpreter Weapon Particle Gun Energy Gun Particle Gun Energy Cannon Beam Cannon Ballistic Gun Light Assault Rifle Launcher Rocket Launcher Special Weapon Plasma Cutter Build | -11 -10 -10 -9 ------- Run | Scr Mat Min Mat Slots Evolved 2 | . . . 2 Power . | . . . . Propulsion 2 | . . . 2 Utility . | . . . . Weapon . | . . . . Parts Attached 30 | 7 16 3 4 Power 4 | 1 2 1 . Engine 3 | 1 2 . . Core 1 | . . 1 . Reactor . | . . . . Propulsion 6 | 2 2 . 2 Treads . | . . . . Leg 6 | 2 2 . 2 Wheel . | . . . . Hover . | . . . . Flight . | . . . . Utility 4 | 1 2 . 1 Device . | . . . . Storage 3 | 1 1 . 1 Processor 1 | . 1 . . Hackware . | . . . . Protection . | . . . . Artifact . | . . . . Weapon 16 | 3 10 2 1 Energy Gun 6 | 1 3 1 1 Energy Cannon 4 | . 4 . . Ballistic Gun 3 | 2 1 . . Ballistic Cannon . | . . . . Launcher 1 | . . 1 . Special Weapon 2 | . 2 . . Impact Weapon . | . . . . Slashing Weapon . | . . . . Piercing Weapon . | . . . . Special Melee Weapon . | . . . . Unidentified Prototypes . | . . . . Parts Lost 7 | . 1 3 3 Power 2 | . . 1 1 Propulsion 2 | . . . 2 Utility . | . . . . Weapon 3 | . 1 2 . Highest Loss Streak 3 | . 1 1 3 To Critical Strikes . | . . . . Average Slot Usage (%) 91 | . 93 90 93 Engine 11 | . 14 8 . Core 2 | . . 5 8 Leg 28 | . 28 28 39 Storage 13 | . 14 14 11 Processor 10 | . 7 14 11 Energy Gun 11 | . 9 13 22 Energy Cannon 5 | . 9 . . Ballistic Gun 4 | . 8 . . Launcher 1 | . . 4 . Naked Turns . | . . . . Heaviest Build 33 | 11 22 22 33 Greatest Support 40 | 20 20 20 40 Greatest Overweight (x) 1 | 1 1 1 . Average Overweight (x) . | . . . . Largest Inventory Capacity 15 | 8 10 10 15 Average Capacity 9 | 7 9 10 14 Most Carried 10 | 2 10 8 7 Average Carried 7 | 1 7 7 4 Final Capacity 15 | 8 10 10 15 Final Carried 8 | 2 8 8 4 Class Distribution -------------------- 75% | Mutant 24% | Scavenger-Mutant Dominant Class ---------------- Mutant | -10/Materials Mutant | -10/Mines Scavenger-Mutant | -9/Materials Resources | -11 -10 -10 -9 ----------- Run | Scr Mat Min Mat Matter Collected 552 | 198 203 151 . Remotely . | . . . . Salvage Created 418 | . 257 161 . Parts 22 | . 15 7 . Haulers Intercepted . | . . . . Recyclers Shooed . | . . . . Parts Field Recycled . | . . . . Retrieved Matter . | . . . . Parts Self-Destructed . | . . . . Prevented . | . . . . Kills | -11 -10 -10 -9 ------- Run | Scr Mat Min Mat Combat Hostiles Destroyed 12 | . 6 6 . Guns 6 | . 4 2 . Cannons 4 | . 2 2 . AOE 2 | . . 2 . Classes Destroyed 3 | . 1 2 . Builder 1 | . . 1 . Grunt 9 | . 6 3 . Assembled 3 | . . 3 . Best Kill Streak 2 | . 2 2 . Combat Bots Only 2 | . 2 2 . Max Kills in Single Turn 1 | . 1 1 . Gunslinging . | . . . . Exploded 1 | . . 1 . Melee . | . . . . Uniques/NPCs Destroyed . | . . . . Combat | -11 -10 -10 -9 -------- Run | Scr Mat Min Mat Damage Taken 1015 | . 390 526 99 Core 175 | . 80 85 10 Absorbed by Shields . | . . . . Core Remaining (%) 67 | 100 . 34 . Volleys Fired 61 | . 32 25 4 Largest 2 | . 2 2 2 Hottest 140 | . 116 105 140 Shots Fired 101 | . 55 38 8 Gun 67 | . 38 21 8 Cannon 18 | . 9 9 . Launcher 8 | . . 8 . Special 8 | . 8 . . Kinetic 19 | . 19 . . Thermal 57 | . 24 25 8 Explosive 8 | . . 8 . Electromagnetic 17 | . 12 5 . Robot Hit Streak 8 | . 8 5 2 Robot Miss Streak 4 | . 4 3 4 Penetration Max . | . . . . Secondary Targets 1 | . 1 . . Max Gunslinging Chain 1 | . 1 . . Shots Hit Robots 49 | . 31 16 2 Core Hits 22 | . 12 10 . Critical Kills . | . . . . Critical Parts Destroyed . | . . . . Critical Strikes 3 | . 1 2 . Burn 3 | . 1 2 . Melee Attacks . | . . . . Impact . | . . . . Slashing . | . . . . Piercing . | . . . . Sneak Attacks . | . . . . Combat Hostiles . | . . . . Follow-up Attacks . | . . . . Damage Inflicted 851 | . 425 390 36 Guns 456 | . 284 136 36 Cannons 246 | . 141 105 . Explosions 149 | . . 149 . Melee . | . . . . Ramming . | . . . . Kinetic 109 | . 109 . . Thermal 436 | . 191 209 36 Explosive 149 | . . 149 . Electromagnetic 157 | . 125 32 . Impact . | . . . . Slashing . | . . . . Piercing . | . . . . Highest Corruption . | . . . . Average Corruption . | . . . . Corruption Purged . | . . . . Corruption Blocked . | . . . . Overload Shots . | . . . . Overflow Damage . | . . . . Projectiles . | . . . . Explosions . | . . . . Melee . | . . . . Knockbacks . | . . . . Impact . | . . . . Kinetic . | . . . . Secondary . | . . . . Self-Inflicted Damage 37 | . . 37 . Shots 1 | . . 1 . Rammed . | . . . . Targets Rammed . | . . . . Kicked . | . . . . Crushed . | . . . . Highest Temperature 375 | . 301 375 169 Average Temperature 98 | . 83 117 71 Received Heat Transfer 435 | . 273 162 . Effects 2 | . 2 . . Interference 2 | . 2 . . Siege Activations . | . . . . Robots Corrupted . | . . . . Combat Hostiles . | . . . . Parts Fried . | . . . . Impact Corruptions . | . . . . Robots Melted . | . . . . Combat Hostiles . | . . . . Parts Melted 1 | . 1 . . Heat Transferred 1184 | . 481 629 74 Parts Sabotaged . | . . . . Parts Stolen . | . . . . Parts Stripped . | . . . . Power Chain Reactions . | . . . . Missiles Intercepted . | . . . . Alert | -11 -10 -10 -9 ------- Run | Scr Mat Min Mat Peak Influence 131 | . 98 131 24 Initial 33 | . . 33 9 Average 45 | . 40 57 12 Maximum Alert Level . | . . . . Low Security (%) 100 | 100 100 100 100 Level 1 . | . . . . Level 2 . | . . . . Level 3 . | . . . . Level 4 . | . . . . Level 5 . | . . . . High Security . | . . . . Max Security . | . . . . Squads Dispatched 2 | . 1 . 1 Investigation . | . . . . Extermination . | . . . . Reinforcement 2 | . 1 . 1 Assault . | . . . . Garrison . | . . . . Intercept . | . . . . Searches Triggered . | . . . . Construction Impeded . | . . . . Haulers Reinforced . | . . . . Active Scanning Responses . | . . . . Cargo Convoy Interrupts . | . . . . Stealth | -11 -10 -10 -9 --------- Run | Scr Mat Min Mat Distress Signals . | . . . . Communications Jammed . | . . . . Distress Signals . | . . . . Times Spotted 32 | . 16 12 4 Peak Tracking Total 3 | . 2 2 3 Tactical Retreats 5 | . 1 4 . Traps | -11 -10 -10 -9 ------- Run | Scr Mat Min Mat Traps Triggered . | . . . . Indirectly . | . . . . Trap Hack Attempts . | . . . . Triggered . | . . . . Disarmed . | . . . . Reprogrammed . | . . . . Reused . | . . . . Traps Extracted . | . . . . Installed . | . . . . Triggered . | . . . . Machines | -11 -10 -10 -9 ---------- Run | Scr Mat Min Mat Machines Disabled . | . . . . Max in Single Turn . | . . . . Machines Sabotaged . | . . . . Garrisons Compromised . | . . . . Overloaded Fab Kills . | . . . . Hacking | -11 -10 -10 -9 --------- Run | Scr Mat Min Mat Machines Accessed 6 | . 6 . . Terminals 4 | . 4 . . Fabricators . | . . . . Repair Stations . | . . . . Recycling Units 2 | . 2 . . Scanalyzers . | . . . . Garrison Access . | . . . . Total Hacks 13 | . 13 . . Successful 9 | . 9 . . Failed 4 | . 4 . . Catastrophic 1 | . 1 . . Database Lockouts . | . . . . Manual 5 | . 5 . . Terminals 11 | . 11 . . Fabricators . | . . . . Repair Stations . | . . . . Recycling Units 2 | . 2 . . Scanalyzers . | . . . . Garrison Access . | . . . . Terminal Hacks 4 | . 4 . . Prototype ID Bank 1 | . 1 . . Locate Traps 1 | . 1 . . Surveillance Status 1 | . 1 . . Recall Investigation 1 | . 1 . . Fabricator Hacks . | . . . . Repair Station Hacks . | . . . . Recycling Unit Hacks 2 | . 2 . . Report Inventory 2 | . 2 . . Scanalyzer . | . . . . Garrison Access Hacks . | . . . . Unauthorized Hacks 3 | . 3 . . Terminals 3 | . 3 . . Botnet 3 | . 3 . . Fabricators . | . . . . Repair Stations . | . . . . Recycling Units . | . . . . Scanalyzers . | . . . . Garrison Access . | . . . . Data Cores Recovered . | . . . . Used . | . . . . Hacking Detections 4 | . 4 . . Full Trace Events . | . . . . Feedback Events . | . . . . Feedback Blocked . | . . . . Robot Schematics Acquired . | . . . . Robots Built . | . . . . Authchips . | . . . . Time . | . . . . Total Robot Build Rating . | . . . . Part Schematics Acquired . | . . . . Parts Built . | . . . . Authchips . | . . . . Time . | . . . . Total Part Build Rating . | . . . . Parts Repaired . | . . . . Time . | . . . . Parts Recycled . | . . . . Recycled Matter . | . . . . Retrieved Matter . | . . . . Retrieved Components . | . . . . Parts Scanalyzed . | . . . . Part Schematics Acquired . | . . . . Parts Damaged . | . . . . Bothacking | -11 -10 -10 -9 ------------ Run | Scr Mat Min Mat Used RIF Installer . | . . . . Robots Hacked . | . . . . Non-combat . | . . . . Combat . | . . . . Robot Hacks Applied . | . . . . Relay Couplers Released . | . . . . Fabnet Peak Effective % . | . . . . Robots Rewired . | . . . . Allies Hacked . | . . . . Hacks Repelled . | . . . . Allies | -11 -10 -10 -9 -------- Run | Scr Mat Min Mat Total Allies . | . . . . Largest Group . | . . . . Highest-Rated Group . | . . . . Highest-Rated Ally . | . . . . Total Orders . | . . . . Ally Attacks . | . . . . Total Damage . | . . . . Kills . | . . . . Allies Corrupted . | . . . . Allies Melted . | . . . . Intel | -11 -10 -10 -9 ------- Run | Scr Mat Min Mat Robot Analysis Total . | . . . . Derelict Logs Recovered 1 | . . 1 . Drone Launches . | . . . . Drone Recoveries . | . . . . Exploration | -11 -10 -10 -9 ------------- Run | Scr Mat Min Mat Turns Passed 2209 | 66 1172 921 50 Spaces Moved 1281 | 46 661 548 26 Core 3 | 3 . . . Treads . | . . . . Legs 1278 | 43 661 548 26 Wheels . | . . . . Hover . | . . . . Flight . | . . . . Fastest Speed 50 | 50 120 120 120 Average Speed 140 | 117 144 137 120 Slowest Speed 190 | 120 190 190 120 Overloaded Moves . | . . . . Propulsion Burnouts . | . . . . Robots Hopped . | . . . . Cave-ins Triggered . | . . . . Exploration Rate (%) 44 | 3 88 79 6 Regions Visited 3 Branch Regions 1 Pre-discovered Areas . | . . . . Known Exits Taken 2 | . 1 1 . Unknown Exits Taken 1 | 1 . . . Scrap Searched 1 | . . 1 . Spaces Dug 14 | . 1 13 . Terrain Destroyed 70 | . 1 69 . Melee . | . . . . Projectile 1 | . 1 . . AOE 69 | . . 69 . Terrain Rammed . | . . . . Walls Destroyed . | . . . . Machines Disabled . | . . . . Actions | -11 -10 -10 -9 --------- Run | Scr Mat Min Mat Total 1585 | 55 816 678 36 Wait 172 | . 72 99 1 Move 1278 | 45 660 547 26 Hop . | . . . . Pick Up 27 | 3 21 3 . Fast Attach 5 | 5 . . . Attach 9 | 1 2 3 3 Detach . | . . . . Swap 16 | 1 14 . 1 Drop 17 | . 15 1 1 Fire 61 | . 32 25 4 Melee . | . . . . Ram . | . . . . Kick . | . . . . Crush . | . . . . Escape Stasis . | . . . . Rewire . | . . . . Trap . | . . . . Miscellaneous . | . . . . Route ------- -11/Scrapyard -10/Materials (discovered 4 exits: *Mat x3 / *Min) -10/Mines (discovered 2 exits: *Mat x2) -9/Materials History --------- Turn | Location | Event 19 | -11/Scrapyard | Discovered new exit (range 15) 67 | -11/Scrapyard | Entered Materials 570 | -10/Materials | Discovered new exit (range 3) 577 | -10/Materials | Build established: Scavenger-Mutant 945 | -10/Materials | Discovered new exit (range 16) 971 | -10/Materials | Identified exit to Materials 996 | -10/Materials | Discovered new exit (range 7) 998 | -10/Materials | Build established: Mutant 1066 | -10/Materials | Discovered exit to Materials (range 15) 1237 | -10/Materials | Identified exit to Mines 1239 | -10/Materials | Entered Mines 1240 | -10/Mines | Met a Derelict bent on vengeance 1350 | -10/Mines | Found a damaged Exp. Sensor Array with a note attached 1352 | -10/Mines | Found Prototype Device 1534 | -10/Mines | Assembled infested the area 1767 | -10/Mines | Core integrity fell below 50% 2143 | -10/Mines | Discovered exit to Materials (range 11) 2160 | -10/Mines | Entered Materials 2160 | -9/Materials | Evolved 2 slots: Propulsion x2 2210 | -9/Materials | Self-destructed Last Messages --------------- 02092_ The unstable cave ceiling collapses. 02097_ Rocket Launcher destroyed. 02100_ as-00700 destroyed. 02103_ The unstable cave ceiling collapses. 02106_ Extracted 21 matter. 02143_ EXIT=FOUND: MATERIALS PARAMETERS=PROPULSION+2 LOCATION=MATERIALS GOAL=ESCAPE 02167_ Dropped Med. Storage Unit. 02183_ O-16 Technician: "IFF HANDSHAKE FAILED. SECURING TERMINAL." 02185_ O-16 Technician uses terminal to summon reinforcements. 02185_ ALERT: Hostiles spotted, dispatching reinforcements to Terminal M010. 02185_ O-16 Technician locks terminal. 02200_ Aluminum Leg destroyed. 02202_ Lgt. Nuclear Core destroyed. 02203_ Aluminum Leg destroyed. 02203_ S-10 Pest destroyed. 02204_ K-01 Serf collects debris. Map ----- +----------------------------------------------------+ | ????????????????????????????????????? | | ????????????????????????????????????? | | ????????????????????????????????????? | | ????????????????????????????????????? | | ????????????????????????????????????? | | ????????????????????????????????????? | | ????????????????????????????????????? | | ????????????????????????????????????? | | ????????????????????????????????????? | | ????????????????????????????????????? | | ????????????????????????????????????? | | ????????########????????????????????? | | ????????# #????????????????????? | | ????????# !!! #????????????????????? | | ????????# !!! #?????? ????????????? | | ????????# !!! #????? ????????? | | ????????? #????? ??????? | | ??????????? #????? #?????? | | ?????????####+####???! !! ?????? | | ?????????# ! #??? !! ????? | | ?????????# #?? ! ????? | | ?????????# #?? ????? | | ???########### #?? #????? | | ???# # #?? ##????? | | ???# # #?? T#????? | | ???# [@/s ### #?????? | | ???# # %s "T" #?????? | | ???# """ """ # o #?????? | | ???# """ """ # #?????? | | ???? """ """ #########k#### #?????? | | ???? #??????????????????????? | | ????##########??????????????????????? | | ????????????????????????????????????? | | ????????????????????????????????????? | | ????????????????????????????????????? | | ????????????????????????????????????? | | ????????????????????????????????????? | | ????????????????????????????????????? | | ????????????????????????????????????? | | ????????????????????????????????????? | | ????????????????????????????????????? | | ????????????????????????????????????? | | ????????????????????????????????????? | | ????????????????????????????????????? | | ????????????????????????????????????? | | ????????????????????????????????????? | | ????????????????????????????????????? | | ????????????????????????????????????? | | ????????????????????????????????????? | | ????????????????????????????????????? | +----------------------------------------------------+ Best States ------------- Heat Dissipation 28 Energy Generation 14 Energy Capacity 250 Matter Stores 300 Matter Capacity 300 Sight Range 16 Terrain Scan Density 10 Evasion (%) 55 Item Schematics ----------------- None Robot Schematics ------------------ None Fabricated ------------ Nothing Alien Tech Used ----------------- None Achievements -------------- None Challenges ------------ None Game ------ Seed SurgeCouplerWand Manual? 0 Play Time 00:28:27 Cumulative 26.7 hours Start 2022.04.27 @ 05:32:28 End 2022.04.27 @ 15:39:44 Sessions 3 Manual Loads 0 Difficulty Rogue Special Mode None Game No. 47 Rogue 47 Adventurer 0 Explorer 0 Win Type - Total 0 Types 0/0/0/0/0/0/0/0/0 Lore% 23 Gallery% 19 Achievement% 19 Wizard Run 0 Options --------- ASCII 0 Keyboard 0 Movement Mouse Keybinds 0 Fullscreen 1 Font 24/Smallcaps Map View 76x50 Tactical HUD 1 Map Filters NONE Filters NONE Steam 1 RUN: e23a9d06-cf4e-45c4-8fae-270a5fa6d7df